bitfinex/quotes_ETHUSD_20250324
["timestamp","ask_amount","ask_price","bid_price","bid_amount"]
[1742838130321,10.11007,2092.1,2091.7,0.50810271]
[1742838130661,10.11007,2092.1,2091.7,0.4603]
[1742838130839,5.32999,2092.1,2091.7,0.50810271]
[1742838131029,5.32999,2092.1,2091.7,0.4603]
[1742838131230,5.32999,2092.1,2091.7,0.50810271]
[1742838131431,10.11005,2092.1,2091.7,0.4603]
[1742838131856,10.11005,2092.1,2091.7,0.50810271]
[1742838132520,10.11005,2092.1,2091.7,0.50810276]
[1742838132923,10.11005,2092.1,2091.7,0.4603]
[1742838133341,10.11005,2092.1,2091.7,0.50810274]
[1742838133747,10.11005,2092.1,2091.7,0.4603]
[1742838134328,4.78012,2092.0,2091.7,0.4603]
[1742838134727,4.78012,2092.0,2091.6,4.78085]
[1742838134728,11.75632,2092.7,2092.0,0.4603]
[1742838134927,5.55614,2092.9,2092.4,4.77908]
[1742838135128,4.77784,2093.0,2092.5,4.77884]
[1742838135441,4.77784,2093.0,2092.6,5.0083]
[1742838135666,4.77809,2092.9,2092.6,5.0083]
[1742838136219,0.8179,2093.3,2092.7,4.77842]
[1742838136443,4.77761,2093.1,2092.6,10.15458577]
[1742838136742,4.77801,2093.0,2092.6,5.0083]
[1742838137245,4.77801,2093.0,2092.6,9.78703]
[1742838139620,9.55604,2093.0,2092.6,9.78703]
[1742838141529,9.55603,2093.0,2092.6,9.78703]
[1742838142045,4.77801,2093.0,2092.6,9.78703]
[1742838142349,4.77807,2092.9,2092.6,9.78703]
[1742838142553,0.55,2093.2,2092.6,5.0083]
[1742838142736,0.55,2092.7,2092.4,0.4603]
[1742838142935,4.779,2092.5,2092.2,0.4603]
[1742838143142,4.77912,2092.5,2092.3,4.547]
[1742838143536,4.72912,2092.5,2092.3,4.547]
[1742838143937,4.7792,2092.4,2092.2,0.4603]
[1742838144138,4.7792,2092.4,2092.3,4.546]
[1742838144533,4.77904,2092.5,2092.3,4.546]
[1742838144754,9.55819,2092.5,2092.3,4.546]
[1742838145055,4.77904,2092.5,2092.3,4.546]
[1742838145258,4.7792,2092.4,2092.3,4.546]
[1742838145459,4.77904,2092.5,2092.3,4.546]
[1742838149554,4.7792,2092.4,2092.0,0.4603]
[1742838149760,4.77973,2092.2,2092.1,4.546]
[1742838151947,4.77949,2092.3,2092.1,4.546]
[1742838153365,4.77965,2092.2,2092.1,4.546]
[1742838160762,4.78034,2091.9,2091.8,25.263]
[1742838160943,4.78034,2091.9,2091.8,29.809]
[1742838162062,4.77969,2092.2,2091.8,29.809]
[1742838162063,4.77971,2092.2,2091.8,29.809]
[1742838162261,4.77971,2092.2,2091.9,0.4603]
[1742838162664,4.78,2092.1,2091.9,0.4603]
[1742838163065,4.78011,2092.0,2091.9,0.4603]
[1742838164138,4.78011,2092.0,2091.8,29.809]
[1742838165165,4.78034,2091.9,2091.8,29.809]
[1742838165890,4.78034,2091.9,2091.8,25.263]
[1742838165891,5.33034,2091.9,2091.8,25.263]
[1742838166038,4.78148,2091.4,2091.1,6.4903]
[1742838166363,4.7818,2091.3,2091.2,4.546]
[1742838166563,4.7818,2091.3,2090.9,25.7253]
[1742838166564,4.78196,2091.2,2090.9,25.7253]
[1742838166933,4.78196,2091.2,2091.0,4.546]
[1742838167534,4.78196,2091.2,2091.1,4.546]
[1742838168540,4.78196,2091.2,2090.9,25.7253]
[1742838168541,4.78218,2091.1,2090.9,25.7253]
[1742838168734,4.78218,2091.1,2091.0,4.546]
[1742838169136,4.78201,2091.2,2091.0,4.546]
[1742838169562,9.56413,2091.2,2091.0,4.546]
[1742838169763,4.78217,2091.1,2091.0,4.546]
[1742838172442,4.7824,2091.0,2090.9,25.265]
[1742838172767,4.78205,2091.2,2090.9,29.812]
[1742838173358,4.7822,2091.1,2090.9,29.812]
[1742838173555,9.56455,2091.1,2090.9,29.812]
[1742838173757,4.7824,2091.0,2090.9,29.812]
[1742838174239,4.7824,2091.0,2090.9,25.265]
[1742838174441,4.7824,2091.0,2090.9,29.812]
[1742838175052,5.33224,2091.1,2090.9,29.812]
[1742838175557,4.7824,2091.0,2090.9,29.812]
[1742838179093,4.78224,2091.1,2090.9,29.812]
[1742838179884,4.78195,2091.2,2090.9,29.812]
[1742838180380,4.78149,2091.4,2091.0,0.50812096]
[1742838180582,4.78149,2091.4,2091.0,5.24257]
[1742838180786,6.16,2091.5,2090.9,4.547]
[1742838180787,6.16,2091.5,2091.2,4.78186]
[1742838180949,6.16,2091.5,2091.3,0.4603]
[1742838181292,10.94125,2091.5,2091.4,4.547]
[1742838182184,6.16,2091.5,2091.4,4.547]
[1742838182482,4.781,2091.7,2091.4,4.547]
[1742838182655,4.78108,2091.6,2091.4,4.547]
[1742838182855,4.78087,2091.7,2091.4,4.547]
[1742838183054,9.56187,2091.7,2091.4,4.547]
[1742838183288,4.78105,2091.6,2091.4,4.547]
[1742838183786,4.78087,2091.7,2091.4,4.547]
[1742838183988,4.78111,2091.6,2091.4,4.547]
[1742838184458,4.78125,2091.5,2091.4,4.547]
[1742838185164,4.78111,2091.6,2091.4,4.547]
[1742838185385,4.78125,2091.5,2091.4,4.547]
[1742838186293,5.57265,2091.5,2091.4,4.547]
[1742838186856,4.78125,2091.5,2091.4,4.547]
[1742838191063,4.696759,2091.5,2091.4,4.547]
[1742838193480,4.78172,2091.3,2091.0,0.4603]
[1742838193801,4.78172,2091.3,2091.1,4.547]
[1742838195405,4.78224,2091.1,2090.8,6.4903]
[1742838195578,4.78246,2091.0,2090.9,4.547]
[1742838198408,4.78246,2091.0,2090.6,5.24353]
[1742838198974,4.78265,2090.9,2090.6,0.4603]
[1742838199197,4.78345,2090.6,2090.4,6.03]
[1742838199502,4.78345,2090.6,2090.2,0.4603]
[1742838199503,4.78365,2090.5,2090.2,0.4603]
[1742838199680,4.78337,2090.6,2090.2,5.24445]
[1742838199882,4.78314,2090.7,2090.4,4.78376]
[1742838200102,4.78285,2090.9,2090.5,5.24382]
[1742838200276,9.56566,2090.9,2090.5,5.24382]
[1742838200795,4.78286,2090.8,2090.5,5.24382]
[1742838201183,4.78281,2090.9,2090.5,5.24382]
[1742838201390,4.78242,2091.0,2090.6,4.78323]
[1742838201575,4.78242,2091.0,2090.5,5.24378]
[1742838202095,4.78297,2090.8,2090.5,0.4603]
[1742838202299,4.78311,2090.7,2090.3,5.24417]
[1742838202498,4.78311,2090.7,2090.4,4.78376]
[1742838202700,4.78292,2090.8,2090.4,4.78376]
[1742838203709,4.78266,2090.9,2090.5,0.04782864]
[1742838203909,4.78266,2090.9,2090.5,0.4603]
[1742838204508,9.56547,2090.9,2090.5,0.4603]
[1742838204679,4.7829,2090.8,2090.5,0.4603]
[1742838205408,4.78267,2090.9,2090.5,0.4603]
[1742838205595,4.78309,2090.7,2090.5,0.4603]
[1742838205795,4.78309,2090.7,2090.3,0.4603]
[1742838206390,4.78337,2090.6,2090.3,0.4603]
[1742838207783,4.78309,2090.7,2090.3,5.24426]
[1742838208417,4.78309,2090.7,2090.4,0.04783277]
[1742838208794,4.78309,2090.7,2090.3,5.24426]
[1742838208983,4.78309,2090.7,2090.4,0.04783276]
[1742838209383,9.56637,2090.7,2090.3,0.4603]
[1742838210415,4.78309,2090.7,2090.3,0.4603]
[1742838211309,4.78309,2090.7,2090.3,5.24428]
[1742838211618,4.78309,2090.7,2090.4,0.04783283]
[1742838211811,9.56638,2090.7,2090.3,0.4603]
[1742838211985,4.78309,2090.7,2090.3,5.24428]
[1742838212189,9.56638,2090.7,2090.3,0.4603]
[1742838212417,4.78309,2090.7,2090.3,0.4603]
[1742838212814,9.56637,2090.7,2090.3,0.4603]
[1742838213122,4.78309,2090.7,2090.3,0.4603]
[1742838213286,9.56634,2090.7,2090.3,0.4603]
[1742838214317,4.78309,2090.7,2090.3,0.4603]
[1742838214523,9.56564,2090.9,2090.4,4.78362]
[1742838214815,4.78282,2090.9,2090.4,9.56731]
[1742838215017,6.16,2091.1,2090.6,0.4603]
[1742838215217,6.16,2091.1,2090.7,4.78298]
[1742838215416,6.16,2091.1,2090.8,4.7828]
[1742838215589,6.16,2091.1,2090.7,4.78298]
[1742838215789,6.16,2091.1,2090.7,9.56596]
[1742838215990,6.16,2091.1,2090.7,4.78298]
[1742838216488,10.94228,2091.1,2090.7,4.78298]
[1742838217304,10.94228,2091.1,2090.6,5.24353]
[1742838217305,4.78242,2091.0,2090.6,5.24353]
[1742838217502,16.55389,2091.1,2090.6,5.24353]
[1742838217709,16.5539,2091.1,2090.6,10.02668]
[1742838217915,4.78252,2091.0,2090.6,5.24345]
[1742838219223,4.78288,2090.8,2090.4,5.24399]
[1742838219391,4.78309,2090.7,2090.4,0.4603]
[1742838220215,4.78366,2090.5,2090.2,0.4603]
[1742838220402,4.78386,2090.4,2090.2,0.4603]
[1742838220811,4.78361,2090.5,2090.2,0.4603]
[1742838221012,4.78378,2090.4,2090.1,0.01]
[1742838221512,4.78407,2090.3,2090.1,0.01]
[1742838221815,5.53946,2090.5,2090.1,4.79443]
[1742838222018,5.53946,2090.5,2090.1,4.84218989]
[1742838222527,5.53946,2090.5,2090.1,4.84218732]
[1742838222691,4.78377,2090.4,2090.1,0.01]
[1742838222893,10.32318,2090.5,2090.1,4.79442]
[1742838223426,5.53946,2090.5,2090.1,4.79442]
[1742838223825,4.78356,2090.5,2090.1,4.79425]
[1742838224029,4.78356,2090.5,2090.2,4.78421]
[1742838224428,6.12931,2090.9,2090.3,5.29205521]
[1742838224643,4.78293,2090.8,2090.4,4.78368]
[1742838225148,4.78293,2090.8,2090.4,4.83151069]
[1742838225341,4.78293,2090.8,2090.4,0.04783069]
[1742838225510,4.78322,2090.7,2090.3,5.2442]
[1742838225709,5.396192,2090.7,2090.3,5.2442]
[1742838226139,4.78342,2090.6,2090.3,0.4603]
[1742838226343,5.396192,2090.7,2090.3,0.4603]
[1742838226853,0.612972,2090.7,2090.4,0.04783087]
[1742838227211,5.396092,2090.7,2090.4,0.04783087]
[1742838227540,0.7965,2090.9,2090.4,0.04783087]
[1742838227745,4.78253,2091.0,2090.6,4.78323]
[1742838227912,4.78253,2091.0,2090.7,0.04782571]
[1742838228112,4.78221,2091.1,2090.6,5.24353]
[1742838228639,9.56456,2091.1,2090.6,5.24347]
[1742838228834,4.78245,2091.0,2090.6,5.24347]
[1742838229036,9.56507,2091.0,2090.6,0.4603]
[1742838229234,4.78245,2091.0,2090.6,0.4603]
[1742838229641,4.78245,2091.0,2090.6,5.24352]
[1742838229813,9.56502,2091.0,2090.6,0.4603]
[1742838231108,4.78322,2090.7,2090.4,0.4603]
[1742838231309,4.78343,2090.6,2090.2,5.24439]
[1742838231543,4.78343,2090.6,2090.2,0.4603]
[1742838232039,4.78357,2090.5,2090.2,0.4603]
[1742838234544,4.78343,2090.6,2090.1,4.79437]
[1742838234545,4.78388,2090.4,2090.1,0.01]
[1742838238224,4.78364,2090.5,2090.1,4.79438]
[1742838238638,4.78387,2090.4,2090.1,0.01]
[1742838238852,9.56782,2090.4,2090.1,0.01]
[1742838239052,4.78387,2090.4,2090.1,0.01]
[1742838239359,4.78403,2090.3,2090.1,0.01]
[1742838243230,4.78423,2090.2,2090.1,0.01]
[1742838243425,6.535729,2090.3,2090.1,0.01]
[1742838243620,5.740829,2090.3,2090.1,0.01]
[1742838244855,4.78423,2090.2,2090.1,0.01]
[1742838245226,6.16263,2090.2,2090.1,0.01]
[1742838245426,7.8313549,2090.2,2090.1,0.01]
[1742838245758,1.6687249,2090.2,2090.1,0.01]
[1742838245932,4.78331,2090.6,2090.2,0.4603]
[1742838246124,5.61163,2090.7,2090.2,5.24443]
[1742838246319,5.61149,2090.7,2090.3,4.78398]
[1742838246974,4.78334,2090.6,2090.2,5.24446]
[1742838247261,5.61149,2090.7,2090.2,5.24434]
[1742838247556,4.78332,2090.6,2090.2,5.2444]
[1742838247756,4.78311,2090.7,2090.3,4.83179363]
[1742838247956,4.78287,2090.8,2090.3,4.83179363]
[1742838249254,5.54615,2090.9,2090.4,4.78363]
[1742838249455,4.78264,2090.9,2090.5,5.24366]
[1742838249840,4.78256,2091.0,2090.5,10.027]
[1742838250451,4.78256,2091.0,2090.5,5.24364]
[1742838250849,4.78256,2091.0,2090.6,0.04782714]
[1742838251053,4.78264,2090.9,2090.6,0.04782726]
[1742838251232,4.78264,2090.9,2090.5,5.24364]
[1742838252163,4.78286,2090.8,2090.5,0.4603]
[1742838252461,4.78369,2090.5,2090.1,0.4703]
[1742838252836,4.78369,2090.5,2090.1,5.25468]
[1742838253143,4.78368,2090.5,2090.1,0.4703]
[1742838253343,4.78368,2090.5,2090.1,5.25474]
[1742838254653,4.78383,2090.4,2090.1,0.4703]
[1742838254851,4.78401,2090.3,2090.1,0.4703]
[1742838255059,4.78401,2090.3,2090.1,0.01]
[1742838255243,4.78383,2090.4,2090.1,0.01]
[1742838255443,0.7886,2090.5,2090.1,0.01]
[1742838255647,4.78339,2090.6,2090.2,0.4603]
[1742838256368,4.78339,2090.6,2090.2,5.24444]
[1742838256567,4.78339,2090.6,2090.2,0.4603]
[1742838256773,9.56737,2090.5,2090.2,0.4603]
[1742838257063,4.78391,2090.4,2090.1,0.01]
[1742838257250,4.78401,2090.3,2090.1,0.01]
[1742838257570,0.956754,2090.4,2090.1,0.01]
[1742838257767,4.78356,2090.5,2090.1,4.79445]
[1742838258138,5.61083,2090.6,2090.1,9.62651809]
[1742838258338,10.39432,2090.6,2090.1,4.79423]
[1742838258974,4.78354,2090.5,2090.1,4.79423]
[1742838259140,4.78354,2090.5,2090.1,4.79444]
[1742838259639,4.78354,2090.5,2090.1,0.01]
[1742838259870,4.78382,2090.4,2090.1,0.01]
[1742838260256,4.78403,2090.3,2090.1,0.01]
[1742838260760,4.78383,2090.4,2090.1,0.01]
[1742838261069,4.784,2090.3,2090.1,0.01]
[1742838261270,9.56815,2090.3,2090.1,0.01]
[1742838261467,4.78423,2090.2,2090.1,0.01]
[1742838267070,5.58834,2090.3,2090.1,0.01]
[1742838267273,4.78423,2090.2,2090.1,0.01]
[1742838267473,5.58834,2090.3,2090.1,0.01]
[1742838267675,7.4005009,2090.3,2090.1,0.01]
[1742838268080,12.1846709,2090.3,2090.1,0.01]
[1742838268280,7.4005009,2090.3,2090.1,0.01]
[1742838268474,6.5962009,2090.3,2090.1,0.01]
[1742838269668,11.983259,2090.4,2090.1,0.01]
[1742838270203,4.78401,2090.3,2090.1,0.01]
[1742838270697,5.823259,2090.4,2090.1,0.01]
[1742838270869,4.78377,2090.4,2090.1,0.4703]
[1742838271293,4.78403,2090.3,2090.1,0.4703]
[1742838272681,4.78377,2090.4,2090.1,0.4703]
[1742838273501,5.60526,2090.5,2090.1,0.51813962]
[1742838273798,4.78356,2090.5,2090.1,5.30258851]
[1742838275099,4.78356,2090.5,2090.1,5.25475]
[1742838275669,6.16,2090.7,2090.4,0.4603]
[1742838275870,4.78263,2090.9,2090.5,4.78353]
[1742838276092,4.78263,2090.9,2090.5,4.83135956]
[1742838276999,9.56542,2090.9,2090.5,4.78353]
[1742838277200,4.78263,2090.9,2090.5,4.83135898]
[1742838278206,4.78286,2090.8,2090.4,5.24392]
[1742838278369,4.78286,2090.8,2090.4,10.02753]
[1742838278569,9.56547,2090.9,2090.5,4.83135899]
[1742838278876,4.78266,2090.9,2090.5,4.78353]
[1742838279290,9.56546,2090.9,2090.5,4.78353]
[1742838279474,4.78266,2090.9,2090.5,4.78353]
[1742838280201,4.78266,2090.9,2090.5,4.78341]
[1742838280385,4.78266,2090.9,2090.6,0.047829]
[1742838280584,4.78266,2090.9,2090.5,4.8312382]
[1742838280975,9.56549,2090.9,2090.4,5.24397]
[1742838281171,4.78286,2090.8,2090.4,5.24397]
[1742838281379,4.78309,2090.7,2090.4,0.4603]
[1742838281577,4.78339,2090.6,2090.4,0.4603]
[1742838281804,4.78339,2090.6,2090.2,5.24451]
[1742838283307,4.78309,2090.7,2090.3,4.78397]
[1742838283906,9.56636,2090.7,2090.3,4.78397]
[1742838287192,9.56636,2090.7,2090.2,5.24445]
[1742838287825,4.78333,2090.6,2090.2,5.24445]
[1742838288384,4.78333,2090.6,2090.2,10.02851]
[1742838289388,4.78333,2090.6,2090.2,5.24436]
[1742838289933,4.78313,2090.7,2090.2,5.24436]
[1742838290091,9.56639,2090.7,2090.3,4.78397]
[1742838290293,4.78334,2090.6,2090.2,5.24448]
[1742838290481,4.78334,2090.6,2090.2,5.2444]
[1742838290981,4.78334,2090.6,2090.2,10.02852]
[1742838291184,4.78334,2090.6,2090.2,5.2444]
[1742838291413,4.78313,2090.7,2090.2,5.2444]
[1742838291614,5.54564,2090.8,2090.4,4.78375]
[1742838292223,5.54564,2090.8,2090.3,4.78397]
[1742838292224,5.54564,2090.8,2090.3,4.78392]
[1742838292399,5.54563,2090.8,2090.4,4.78373]
[1742838293029,4.7831,2090.7,2090.3,4.78392]
[1742838296929,9.56636,2090.7,2090.3,4.78392]
[1742838297430,4.7831,2090.7,2090.3,4.78392]
[1742838297730,4.78333,2090.6,2090.3,4.78392]
[1742838298436,4.7831,2090.7,2090.3,4.78392]
[1742838300204,4.7831,2090.7,2090.2,5.60959243]
[1742838300406,4.78334,2090.6,2090.2,10.39369243]
[1742838301112,4.78334,2090.6,2090.3,4.78399]
[1742838301301,4.78334,2090.6,2090.2,10.39369243]
[1742838301508,4.7831,2090.7,2090.3,4.78394]
[1742838301707,4.78332,2090.6,2090.2,5.2444]
[1742838301907,4.78332,2090.6,2090.2,10.02854]
[1742838302332,4.78332,2090.6,2090.2,5.2444]
[1742838303348,4.7831,2090.7,2090.3,4.78398]
[1742838303537,4.7831,2090.7,2090.2,10.0285]
[1742838303745,4.78343,2090.6,2090.2,4.7841]
[1742838304255,4.78369,2090.5,2090.1,10.82445]
[1742838304556,4.78369,2090.5,2090.2,4.78421]
[1742838304725,4.78343,2090.6,2090.2,9.56833]
[1742838305041,4.78343,2090.6,2090.2,4.78412]
[1742838305339,9.56695,2090.6,2090.2,4.78412]
[1742838306441,4.78343,2090.6,2090.2,4.78412]
[1742838306646,9.56691,2090.6,2090.2,4.78412]
[1742838307243,4.78356,2090.5,2090.2,4.78412]
[1742838307432,4.78343,2090.6,2090.2,4.78412]
[1742838307633,9.5669,2090.6,2090.2,4.78412]
[1742838307814,9.56692,2090.6,2090.2,4.78412]
[1742838308214,9.56692,2090.6,2090.3,4.78399]
[1742838308215,4.78343,2090.6,2090.3,4.78399]
[1742838308514,4.78319,2090.7,2090.3,5.24429]
[1742838309239,5.816065,2090.7,2090.2,9.5682]
[1742838309447,4.78344,2090.6,2090.2,9.5682]
[1742838309616,9.56644,2090.7,2090.2,9.5682]
[1742838309941,5.54565,2090.8,2090.1,0.4703]
[1742838310109,10.3287,2090.8,2090.3,5.24422]
[1742838310314,4.78312,2090.7,2090.3,5.24422]
[1742838310545,4.78312,2090.7,2090.1,0.01]
[1742838310546,4.78362,2090.5,2090.1,0.4703]
[1742838310734,4.78412,2090.3,2090.1,0.01]
[1742838311045,0.7781,2090.5,2090.1,0.01]
[1742838311046,4.78385,2090.4,2090.1,0.01]
[1742838311213,9.56778,2090.4,2090.1,0.01]
[1742838311411,10.602368,2090.4,2090.1,0.01]
[1742838311645,4.78402,2090.3,2090.1,0.01]
[1742838313716,9.56821,2090.3,2090.1,0.01]
[1742838313917,4.78402,2090.3,2090.1,0.01]
[1742838317421,9.56818,2090.3,2090.1,0.01]
[1742838317638,5.9221068,2090.3,2090.1,0.01]
[1742838319454,5.53943,2090.2,2090.1,0.01]
[1742838321754,1.1380868,2090.3,2090.1,0.01]
[1742838321953,6.626878,2090.4,2090.1,0.01]
[1742838322160,4.78416,2090.3,2090.1,0.01]
[1742838323448,4.78423,2090.2,2090.1,0.01]
[1742838323757,4.78407,2090.3,2090.1,0.01]
[1742838325433,4.78423,2090.2,2090.1,0.01]
[1742838325653,5.9253688,2090.2,2090.1,0.01]
[1742838330845,6.7274688,2090.2,2090.1,0.01]
[1742838332163,5.9253688,2090.2,2090.1,0.01]
[1742838332365,4.78423,2090.2,2090.1,0.01]
[1742838333867,5.53623,2090.2,2090.1,0.01]
[1742838340254,6.08623,2090.2,2090.1,0.01]
[1742838340974,6.13323,2090.2,2090.1,0.01]
[1742838341173,9.13323,2090.2,2090.1,0.01]
[1742838341374,11.7227988,2090.2,2090.1,0.01]
[1742838343478,17.8827988,2090.2,2090.1,0.01]
[1742838344385,0.55,2090.1,2089.4,1.54160854]
[1742838344558,0.55,2090.1,2089.5,5.29388397]
[1742838344559,4.78488,2090.0,2089.5,5.29388397]
[1742838344755,10.94435,2090.2,2089.8,4.78509]
[1742838344961,10.94435,2090.2,2089.9,0.4603]
[1742838345171,4.78435,2090.2,2089.9,0.4603]
[1742838345791,4.784,2090.3,2089.9,0.4603]
[1742838345957,4.78373,2090.5,2090.0,4.78453]
[1742838346273,4.78373,2090.5,2090.2,0.4603]
[1742838347688,4.78332,2090.6,2090.2,5.24445]
[1742838348066,4.78363,2090.5,2090.2,0.4603]
[1742838348287,4.78332,2090.6,2090.2,5.2444]
[1742838348460,9.56675,2090.6,2090.2,5.2444]
[1742838348656,4.78312,2090.7,2090.3,0.04783571]
[1742838348862,4.78312,2090.7,2090.4,0.4603]
[1742838350491,4.78306,2090.8,2090.4,5.24402]
[1742838350696,4.78263,2090.9,2090.6,0.4603]
[1742838351080,4.78273,2090.9,2090.6,0.4603]
[1742838351485,9.56556,2090.9,2090.6,0.4603]
[1742838351682,4.78273,2090.9,2090.6,0.4603]
[1742838352269,4.78286,2090.8,2090.6,0.4603]
[1742838352799,4.78308,2090.7,2090.4,0.4603]
[1742838352998,9.56634,2090.7,2090.4,0.4603]
[1742838353197,4.78308,2090.7,2090.4,0.4603]
[1742838355085,5.46433513,2090.8,2090.4,5.24398]
[1742838355926,10.24739513,2090.8,2090.4,5.24398]
[1742838356105,5.88372951,2090.7,2090.4,0.4603]
[1742838356587,10.66698951,2090.7,2090.4,0.4603]
[1742838357098,4.78332,2090.6,2090.4,0.4603]
[1742838357901,10.66699951,2090.7,2090.4,0.4603]
[1742838358328,4.78334,2090.6,2090.4,0.4603]
[1742838358604,4.78354,2090.5,2090.2,6.4903]
[1742838359181,4.78354,2090.5,2090.2,11.27451]
[1742838360508,4.78354,2090.5,2090.2,6.4903]
[1742838360803,4.78388,2090.4,2090.2,6.4903]
[1742838361002,4.78432,2090.2,2089.8,5.24542]
[1742838361194,4.78432,2090.2,2089.8,0.4603]
[1742838361373,4.78455,2090.1,2089.8,0.4603]
[1742838361877,0.557604,2090.4,2089.9,4.7847]
[1742838361878,5.341504,2090.4,2089.9,4.7847]
[1742838362091,5.341504,2090.4,2090.1,0.4603]
[1742838362092,4.7839,2090.4,2090.1,0.4603]
[1742838362478,9.56719,2090.5,2090.1,0.4603]
[1742838362800,9.56719,2090.5,2090.1,5.24475]
[1742838362801,4.78354,2090.5,2090.1,5.24475]
[1742838363470,4.78333,2090.6,2090.2,4.78422]
[1742838363673,4.78333,2090.6,2090.2,4.83205662]
[1742838363871,10.94318,2090.7,2090.2,4.83205662]
[1742838364099,4.78333,2090.6,2090.2,4.83196662]
[1742838364397,4.78333,2090.6,2090.2,4.78413]
[1742838364698,4.78287,2090.8,2090.4,5.24404]
[1742838365079,4.78287,2090.8,2090.4,0.4603]
[1742838365403,4.78319,2090.7,2090.4,0.4603]
[1742838366607,4.78287,2090.8,2090.4,5.24395]
[1742838367106,4.78263,2090.9,2090.4,5.24386]
[1742838367405,4.78192,2091.3,2090.7,0.4603]
[1742838367605,9.56376,2091.3,2090.9,4.78261]
[1742838367774,9.56366,2091.3,2090.9,4.78261]
[1742838368073,4.78182,2091.3,2090.9,4.78261]
[1742838368498,4.78181,2091.3,2091.0,0.4603]
[1742838368710,4.78196,2091.2,2091.0,0.4603]
[1742838368885,4.78217,2091.1,2091.0,0.4603]
[1742838369096,4.78217,2091.1,2090.6,4.7833]
[1742838369097,4.78241,2091.0,2090.7,0.4603]
[1742838369285,5.54842,2091.1,2090.7,5.24338]
[1742838369481,4.78222,2091.1,2090.7,5.24338]
[1742838369682,4.78195,2091.2,2090.8,4.78285]
[1742838369877,9.56406,2091.2,2090.8,4.78285]
[1742838370079,4.78195,2091.2,2090.8,4.78285]
[1742838370610,4.78174,2091.3,2090.8,4.78271]
[1742838370774,4.78174,2091.3,2091.0,0.4603]
[1742838371106,4.7813,2091.5,2091.1,4.78207]
[1742838371306,4.78122,2091.6,2091.2,4.78191]
[1742838371619,4.78122,2091.6,2091.3,0.4603]
[1742838371831,3.51214254,2091.8,2091.3,0.4603]
[1742838372035,8.29284254,2091.8,2091.4,4.78137]
[1742838372186,8.29284254,2091.8,2091.4,4.82917914]
[1742838372586,3.51214254,2091.8,2091.5,4.78122]
[1742838373983,3.51214254,2091.8,2091.5,4.78115]
[1742838374395,3.51214254,2091.8,2091.4,4.78145]
[1742838374822,3.51214254,2091.8,2091.6,0.4603]
[1742838374990,3.51214254,2091.8,2091.6,5.2413]
[1742838375321,4.78015,2092.0,2091.6,5.2413]
[1742838375322,4.78034,2091.9,2091.6,0.4603]
[1742838375522,4.78064,2091.8,2091.4,5.24173]
[1742838375694,4.78081,2091.7,2091.4,0.4603]
[1742838375899,4.78103,2091.6,2091.2,10.81192]
[1742838376100,4.78085,2091.7,2091.3,4.78171]
[1742838376923,9.56178,2091.7,2091.3,4.78171]
[1742838377221,4.78108,2091.6,2091.2,6.4903]
[1742838377421,4.78128,2091.5,2091.2,6.4903]
[1742838377591,4.78107,2091.6,2091.2,11.2722]
[1742838378009,4.78107,2091.6,2091.2,6.4903]
[1742838378196,4.78186,2091.3,2090.9,5.2428]
[1742838378406,4.7818,2091.3,2090.9,5.2428]
[1742838378608,4.78198,2091.2,2090.9,0.4603]
[1742838384427,4.78198,2091.2,2090.9,5.24289]
[1742838387431,4.78126,2091.5,2091.1,4.78203]
[1742838387635,4.78087,2091.7,2091.3,4.78152]
[1742838387838,4.78058,2091.8,2091.5,0.4603]
[1742838387839,4.78066,2091.8,2091.5,0.4603]
[1742838388498,4.78041,2091.9,2091.5,5.24154]
[1742838388898,4.78088,2091.7,2091.5,0.4603]
[1742838389144,4.78102,2091.6,2091.3,6.03]
[1742838389504,4.78102,2091.6,2091.3,10.81169]
[1742838389918,4.78102,2091.6,2091.3,6.03]
[1742838390418,4.78128,2091.5,2091.3,6.03]
[1742838390601,9.56224,2091.6,2091.3,6.03]
[1742838390998,10.598034,2091.6,2091.3,6.03]
[1742838391545,4.7813,2091.5,2091.3,6.03]
[1742838392535,4.7811,2091.6,2091.3,6.03]
[1742838393211,9.5623,2091.6,2091.2,4.78181]
[1742838393435,4.7811,2091.6,2091.2,4.78181]
[1742838393932,4.78086,2091.7,2091.3,4.78155]
[1742838394405,4.78111,2091.6,2091.3,4.78169]
[1742838394801,4.78086,2091.7,2091.3,4.78169]
[1742838396721,4.7806,2091.8,2091.3,4.82944098]
[1742838396903,4.7806,2091.8,2091.4,5.24169]
[1742838397111,4.78013,2092.0,2091.5,4.78121]
[1742838397306,4.78013,2092.0,2091.5,4.82901721]
[1742838397307,4.78058,2091.8,2091.5,4.82901721]
[1742838397523,4.78034,2091.9,2091.5,4.82901721]
[1742838397736,4.78034,2091.9,2091.5,4.82901733]
[1742838397926,4.78034,2091.9,2091.5,4.7811]
[1742838398334,4.78034,2091.9,2091.5,9.56221]
[1742838399539,4.78034,2091.9,2091.5,4.7811]
[1742838400241,0.8166,2092.1,2091.7,0.4603]
[1742838400242,4.77993,2092.1,2091.7,0.4603]
[1742838400457,4.77993,2092.1,2091.7,10.02159]
[1742838400623,4.78012,2092.0,2091.7,0.4603]
[1742838402855,4.78012,2092.0,2091.6,4.78088]